bitfinex/quotes_BTCUSD_20250523
["timestamp","ask_amount","ask_price","bid_price","bid_amount"]
[1748002694848,0.001,108010.0,108000.0,1.71754103]
[1748002695288,0.001,108010.0,108000.0,1.37754111]
[1748002695705,0.0122578,108010.0,108000.0,1.37754111]
[1748002695908,0.003,108010.0,108000.0,1.37754111]
[1748002696347,0.01225771,108010.0,108000.0,0.96888806]
[1748002696561,0.03701842,108050.0,108040.0,0.20361247]
[1748002696764,0.03701842,108050.0,108030.0,0.21290277]
[1748002696765,0.00925514,108040.0,108030.0,0.21290277]
[1748002696975,0.02776551,108040.0,108030.0,0.89830458]
[1748002697184,0.22213753,108040.0,108030.0,0.48954556]
[1748002697395,0.21288341,108040.0,108030.0,0.5422362]
[1748002697601,0.21288341,108040.0,108030.0,0.72736995]
[1748002697824,0.01851105,108040.0,108030.0,0.74588246]
[1748002698044,0.20362767,108040.0,108030.0,0.4]
[1748002698257,0.20327856,108020.0,108010.0,0.20368439]
[1748002698469,0.00925677,108020.0,108010.0,0.7111408]
[1748002698685,0.21292274,108020.0,108010.0,0.48954556]
[1748002698898,0.21292274,108020.0,108010.0,0.17782254]
[1748002699123,0.19442626,108010.0,108000.0,0.18952151]
[1748002699351,0.2036844,108010.0,108000.0,0.1]
[1748002699980,0.01851585,108010.0,108000.0,0.39324882]
[1748002700196,0.23578423,108010.0,108000.0,0.1]
[1748002700642,0.23778423,108010.0,108000.0,0.1]
[1748002700862,0.20568423,108010.0,108000.0,0.1]
[1748002701081,0.20042626,108010.0,108000.0,0.1001]
[1748002701503,0.02451585,108010.0,108000.0,0.40260747]
[1748002701729,0.02451551,108010.0,108000.0,4.13714028]
[1748002701970,0.21894227,108010.0,108000.0,0.57903762]
[1748002702189,0.21894227,108010.0,108000.0,0.4539818]
[1748002702396,0.02451568,108010.0,108000.0,0.47249936]
[1748002702611,0.006,108010.0,108000.0,5.83625241]
[1748002702818,0.01851037,108040.0,108030.0,0.19436479]
[1748002703045,0.20592469,108070.0,108050.0,0.203609]
[1748002703305,0.0207736,108070.0,108060.0,0.21515682]
[1748002703534,0.0212842,108070.0,108060.0,4.47504274]
[1748002703760,0.0397896,108070.0,108060.0,4.39939579]
[1748002703975,0.04904269,108070.0,108060.0,3.86074274]
[1748002704183,0.0212842,108070.0,108060.0,3.95026425]
[1748002704396,0.03053669,108070.0,108060.0,4.3589173]
[1748002704606,0.0272842,108070.0,108060.0,3.88336425]
[1748002704810,0.0272842,108070.0,108060.0,4.2920173]
[1748002705240,0.03853669,108070.0,108060.0,4.2920173]
[1748002705443,0.05704226,108070.0,108060.0,3.63356425]
[1748002705649,0.05504226,108070.0,108060.0,2.66786425]
[1748002705857,0.23410801,108070.0,108060.0,2.44576707]
[1748002706087,0.1943363,108060.0,108050.0,0.74]
[1748002706282,0.01850352,108080.0,108070.0,0.52506523]
[1748002706489,0.21507853,108120.0,108080.0,0.00925172]
[1748002706701,0.21276551,108100.0,108090.0,0.75921238]
[1748002706914,0.19430034,108080.0,108070.0,0.05970186]
[1748002707141,0.19443547,108090.0,108070.0,0.27252583]
[1748002707347,0.00925317,108070.0,108050.0,0.18809854]
[1748002707552,0.00015311,108090.0,108080.0,0.55280429]
[1748002707769,0.00015311,108090.0,108080.0,5.11264985]
[1748002707983,0.00015311,108090.0,108080.0,5.1752029]
[1748002708191,0.00015311,108090.0,108080.0,2.6865029]
[1748002708401,5.311e-05,108090.0,108080.0,2.02737136]
[1748002708617,0.00930406,108090.0,108080.0,1.15887136]
[1748002708835,0.00930406,108090.0,108080.0,1.1403675]
[1748002708836,5.311e-05,108090.0,108080.0,1.1403675]
[1748002709046,5.311e-05,108090.0,108080.0,0.39187136]
[1748002709250,5.311e-05,108090.0,108080.0,5.78187136]
[1748002709694,5.311e-05,108090.0,108080.0,6.19052441]
[1748002709897,5.311e-05,108090.0,108080.0,5.64167136]
[1748002710105,5.311e-05,108090.0,108080.0,5.64177136]
[1748002710326,0.1850841,108090.0,108080.0,5.6232675]
[1748002710534,0.0278062,108090.0,108080.0,0.79197153]
[1748002710759,0.0278062,108090.0,108080.0,0.80122333]
[1748002711009,5.311e-05,108090.0,108080.0,1.78907136]
[1748002711219,0.22208891,108090.0,108080.0,0.36621518]
[1748002711431,0.22208891,108090.0,108080.0,0.17916707]
[1748002711432,0.20350068,108090.0,108080.0,0.17916707]
[1748002711639,0.20350068,108090.0,108080.0,0.0001]
[1748002711844,0.20350068,108090.0,108080.0,0.0024128]
[1748002712080,0.20350068,108090.0,108080.0,0.0054128]
[1748002712286,0.20350068,108090.0,108080.0,0.19046091]
[1748002712497,0.0092506,108100.0,108090.0,0.00925154]
[1748002712701,0.20353348,108090.0,108080.0,0.08964556]
[1748002712912,0.01850249,108090.0,108080.0,0.29319821]
[1748002713143,0.21278502,108090.0,108080.0,0.28394607]
[1748002713351,0.03900455,108090.0,108080.0,0.39197145]
[1748002713558,0.02975309,108090.0,108080.0,0.38271956]
[1748002713762,0.00925112,108090.0,108080.0,0.38271972]
[1748002713990,0.21605781,108110.0,108100.0,0.18501387]
[1748002714210,0.03705796,108110.0,108100.0,0.20351516]
[1748002714426,0.22205464,108110.0,108100.0,0.22863292]
[1748002714679,0.01855838,108110.0,108100.0,0.33667892]
[1748002714883,0.21280549,108110.0,108100.0,0.30892788]
[1748002715056,0.21280549,108110.0,108100.0,0.31817848]
[1748002715264,0.20755617,108110.0,108100.0,0.02511776]
[1748002715469,0.19426447,108100.0,108090.0,0.20353198]
[1748002715677,0.21276457,108100.0,108090.0,0.29307754]
[1748002715882,0.02775053,108100.0,108090.0,0.30232849]
[1748002716295,0.1942643,108100.0,108090.0,0.08954556]
[1748002716495,0.2035149,108100.0,108090.0,0.08954556]
[1748002716713,0.19530642,108110.0,108090.0,0.38146312]
[1748002716911,0.20455583,108110.0,108090.0,0.37221183]
[1748002717129,0.21476491,108100.0,108090.0,0.37231183]
[1748002717333,0.01850044,108100.0,108090.0,0.36306122]
[1748002717537,0.02875096,108100.0,108090.0,0.39081483]
[1748002717746,0.20551499,108100.0,108090.0,0.16877869]
[1748002717906,0.01125009,108100.0,108090.0,0.38156329]
[1748002718109,0.01025009,108100.0,108090.0,0.38156329]
[1748002718312,0.02050035,108100.0,108090.0,0.38156329]
[1748002718520,0.01125,108100.0,108090.0,4.17606329]
[1748002718678,0.01125,108100.0,108090.0,1.08161634]
[1748002718899,0.01125009,108100.0,108090.0,1.08161634]
[1748002719099,0.002,108100.0,108090.0,1.07296329]
[1748002719314,0.002,108100.0,108090.0,1.48161634]
[1748002719520,0.01125,108100.0,108090.0,1.48161634]
[1748002719738,0.002,108100.0,108090.0,1.48161634]
[1748002719947,0.002,108100.0,108090.0,1.82161634]
[1748002720354,0.002,108100.0,108090.0,1.85211634]
[1748002720782,0.002,108100.0,108090.0,1.92653841]
[1748002721002,0.002,108100.0,108090.0,1.54858536]
[1748002721238,0.002,108100.0,108090.0,1.95723841]
[1748002721440,0.001,108100.0,108090.0,1.88281634]
[1748002721650,6e-05,108110.0,108100.0,0.21276491]
[1748002721858,6e-05,108110.0,108100.0,0.75552943]
[1748002722062,6e-05,108110.0,108100.0,5.06592943]
[1748002722276,6e-05,108110.0,108100.0,5.05727638]
[1748002722488,6e-05,108110.0,108100.0,5.46592943]
[1748002722907,0.0046631,108110.0,108100.0,5.46592943]
[1748002723122,0.0046631,108110.0,108100.0,5.05727638]
[1748002723325,0.0046631,108110.0,108100.0,5.46592943]
[1748002723532,0.0046631,108110.0,108100.0,5.05927638]
[1748002723756,0.0046631,108110.0,108100.0,5.46892943]
[1748002723962,0.03,108120.0,108110.0,0.55274523]
[1748002724165,0.03,108120.0,108110.0,6.18580225]
[1748002724391,0.03924821,108120.0,108110.0,6.18580225]
[1748002724590,0.03924829,108120.0,108110.0,6.1771492]
[1748002724796,0.03924829,108120.0,108110.0,6.58580225]
[1748002725002,0.03924821,108120.0,108110.0,6.58580225]
[1748002725262,0.03924821,108120.0,108110.0,6.50760225]
[1748002725432,0.03924821,108120.0,108110.0,6.04730225]
[1748002725575,0.05774488,108120.0,108110.0,6.44654225]
[1748002725777,0.00774496,108120.0,108110.0,6.43729302]
[1748002726054,0.21272608,108120.0,108110.0,6.41879378]
[1748002726215,0.21272608,108120.0,108110.0,0.97464397]
[1748002726216,0.20347744,108120.0,108110.0,0.97464397]
[1748002726420,0.01849779,108120.0,108110.0,1.56829378]
[1748002726650,0.18696904,108130.0,108110.0,2.01813818]
[1748002726651,0.002,108130.0,108110.0,2.01813818]
[1748002726891,0.01140049,108130.0,108120.0,0.30227112]
[1748002727074,0.00215297,108130.0,108120.0,4.75090425]
[1748002727508,0.00215297,108130.0,108120.0,1.60650425]
[1748002727711,0.00215297,108130.0,108120.0,3.52050425]
[1748002728625,0.00315297,108130.0,108120.0,3.52050425]
[1748002729563,0.20661115,108130.0,108120.0,1.10290732]
[1748002729784,0.19836346,108130.0,108120.0,0.56867869]
[1748002730009,0.19836346,108130.0,108120.0,0.75365834]
[1748002730259,0.00415297,108130.0,108120.0,0.79065323]
[1748002730492,0.00415297,108130.0,108120.0,0.97710039]
[1748002730741,0.00415297,108130.0,108120.0,1.36300039]
[1748002730984,0.00415297,108130.0,108120.0,1.50122246]
[1748002731500,0.00814614,108180.0,108170.0,0.55185512]
[1748002731749,0.0307,108200.0,108180.0,0.19409804]
[1748002731750,0.01848368,108200.0,108180.0,0.19409804]
[1748002732006,0.02498304,108210.0,108200.0,0.2033269]
[1748002732236,0.02498304,108210.0,108190.0,0.55258775]
[1748002732237,0.01899327,108200.0,108190.0,0.55258775]
[1748002732454,0.203837,108200.0,108190.0,0.08954556]
[1748002732684,0.20980884,108210.0,108200.0,0.02772539]
[1748002732685,0.02498304,108210.0,108200.0,0.02772539]
[1748002732886,0.025136,108210.0,108200.0,1.01611383]
[1748002733069,0.01963146,108210.0,108200.0,1.26681383]
[1748002733543,0.00923881,108230.0,108220.0,0.20327335]
[1748002733815,0.01847804,108230.0,108220.0,0.29283454]
[1748002734020,0.01847839,108230.0,108220.0,0.2928342]
[1748002734222,0.01847805,108230.0,108220.0,0.2928342]
[1748002734435,0.00929744,108250.0,108240.0,0.21248972]
[1748002734648,0.01868804,108250.0,108240.0,0.31497001]
[1748002734859,0.20344554,108250.0,108240.0,0.11171842]
[1748002735077,0.20344554,108250.0,108240.0,0.29649299]
[1748002735278,0.20344554,108250.0,108240.0,0.30573171]
[1748002735484,0.21268315,108250.0,108240.0,0.45171842]
[1748002735698,0.01868829,108250.0,108240.0,0.13019535]
[1748002735901,0.02792548,108250.0,108240.0,0.30573171]
[1748002736117,0.01868718,108250.0,108240.0,0.43414669]
[1748002736335,0.00021281,108250.0,108240.0,0.43414669]
[1748002736543,0.00021281,108250.0,108240.0,0.77414669]
[1748002736795,0.00021281,108250.0,108240.0,0.77424669]
[1748002737015,0.00021281,108250.0,108240.0,0.91076876]
[1748002737265,0.00621281,108250.0,108240.0,0.91076876]
[1748002737914,0.00621281,108250.0,108240.0,0.77424669]
[1748002738118,0.18497031,108250.0,108240.0,0.75577018]
[1748002738324,0.18497031,108250.0,108240.0,0.77424669]
[1748002738325,0.02068727,108250.0,108240.0,0.77424669]
[1748002738535,0.20544545,108250.0,108240.0,0.46105697]
[1748002738761,0.20344545,108250.0,108240.0,0.11181842]
[1748002738966,0.23504545,108250.0,108240.0,0.08964556]
[1748002739181,0.23504545,108250.0,108240.0,0.0001]
[1748002739395,0.20344545,108250.0,108240.0,0.0001]
[1748002739620,0.7622009,108250.0,108240.0,0.0001]
[1748002739842,0.20444545,108250.0,108240.0,0.0011]
[1748002740049,0.01968761,108250.0,108240.0,0.29389732]
[1748002740278,0.00121281,108250.0,108240.0,0.31237383]
[1748002740489,0.19520758,108250.0,108240.0,0.17916707]
[1748002740699,0.19520758,108250.0,108240.0,0.0001]
[1748002740700,0.20644545,108250.0,108240.0,0.0001]
[1748002740918,0.26684545,108250.0,108240.0,0.0001]
[1748002741586,0.26484545,108250.0,108240.0,0.0001]
[1748002742024,0.26884545,108250.0,108240.0,0.0001]
[1748002742236,0.26484545,108250.0,108240.0,0.0001]
[1748002742464,0.26484545,108250.0,108240.0,0.08964556]
[1748002742465,0.20444545,108250.0,108240.0,0.08964556]
[1748002742641,0.01968744,108250.0,108240.0,0.31110975]
[1748002742895,0.22292025,108250.0,108240.0,0.31111026]
[1748002743094,0.20444596,108250.0,108240.0,0.09862012]
[1748002743302,0.20444596,108250.0,108240.0,0.0001]
[1748002743507,0.26834596,108250.0,108240.0,0.0001]
[1748002743713,0.27234596,108250.0,108240.0,0.0001]
[1748002743917,0.26834596,108250.0,108240.0,0.0001]
[1748002744325,0.27134596,108250.0,108240.0,0.0001]
[1748002744745,0.26834596,108250.0,108240.0,0.0001]
[1748002744950,0.36189152,108250.0,108240.0,0.0001]
[1748002745584,0.01847788,108230.0,108220.0,0.56417827]
[1748002745797,0.00923855,108240.0,108230.0,0.20327054]
[1748002746049,0.19401329,108240.0,108230.0,0.08954556]
[1748002746570,0.00521281,108250.0,108240.0,0.34]
[1748002746791,0.00121281,108250.0,108240.0,0.64203528]
[1748002747053,0.00121281,108250.0,108240.0,5.75573528]
[1748002747285,0.00121281,108250.0,108240.0,5.78034095]
[1748002747754,0.00121281,108250.0,108240.0,5.78015822]
[1748002747977,0.00400001,108250.0,108240.0,5.78115821]
[1748002748209,1e-08,108250.0,108240.0,5.78115821]
[1748002748698,1e-08,108250.0,108240.0,6.18115821]
[1748002749670,1e-08,108250.0,108240.0,6.18215821]
[1748002749904,1e-08,108250.0,108240.0,6.18115821]
[1748002750347,1e-08,108250.0,108240.0,2.06085821]
[1748002750597,1e-08,108250.0,108240.0,1.07145821]
[1748002751013,1e-08,108250.0,108240.0,3.57895821]
[1748002751231,1e-08,108250.0,108240.0,2.34615821]
[1748002751661,1e-08,108250.0,108240.0,2.35015821]
[1748002751868,1e-08,108250.0,108240.0,2.40605821]
[1748002752074,1e-08,108250.0,108240.0,2.40205821]
[1748002752518,1e-08,108250.0,108240.0,2.40505821]
[1748002752735,1e-08,108250.0,108240.0,2.41505821]
[1748002753207,1e-08,108250.0,108240.0,2.40205821]
[1748002753463,1e-08,108250.0,108240.0,2.41205821]
[1748002753680,1e-08,108250.0,108240.0,2.41905821]
[1748002753913,1e-08,108250.0,108240.0,2.40605821]
[1748002754123,1e-08,108250.0,108240.0,2.41005821]
[1748002754529,1e-08,108250.0,108240.0,2.40605821]
[1748002754747,0.19395877,108270.0,108260.0,0.34]
[1748002754956,0.19395877,108270.0,108240.0,2.38434306]
[1748002754957,0.19399511,108250.0,108240.0,0.62406023]
[1748002755183,0.19399511,108250.0,108240.0,0.62729878]
[1748002755184,0.20323298,108250.0,108240.0,0.62729878]
[1748002755405,0.00923736,108250.0,108240.0,1.12208256]
[1748002755614,0.00923599,108270.0,108260.0,0.19397745]
[1748002755831,0.00923582,108270.0,108260.0,0.21245046]
[1748002756056,0.22164635,108280.0,108270.0,0.19395945]
[1748002756274,0.01847139,108270.0,108260.0,0.54321387]
[1748002756488,0.22166649,108270.0,108260.0,0.42954556]
[1748002756697,0.2032323,108250.0,108240.0,1.01806023]
[1748002756934,0.23563281,108250.0,108240.0,0.42928566]
[1748002757146,0.26753281,108250.0,108240.0,0.42928566]
[1748002757352,0.26029528,108250.0,108240.0,0.39967999]
[1748002757770,0.25829528,108250.0,108240.0,0.39967999]
[1748002758066,0.75635073,108250.0,108240.0,0.00099999]
[1748002758300,0.2660702,108230.0,108220.0,0.0145364]
[1748002758504,0.20336415,108180.0,108170.0,0.0001]
[1748002758718,0.23926415,108180.0,108170.0,0.0001]
[1748002758934,0.23926415,108180.0,108170.0,0.0006101]
[1748002759396,0.32880971,108180.0,108170.0,0.0006101]
[1748002759639,0.23926415,108180.0,108170.0,0.0006101]
[1748002759854,0.32880971,108180.0,108170.0,0.0006101]
[1748002760088,0.11994556,108180.0,108170.0,0.19474886]
[1748002760319,0.05168488,108190.0,108170.0,0.21699737]
[1748002760533,0.06092753,108190.0,108170.0,0.31578746]
[1748002760747,0.06092753,108190.0,108170.0,0.31578738]
[1748002760748,0.07017044,108190.0,108170.0,0.31578738]
[1748002760962,0.031,108200.0,108190.0,0.18485996]
[1748002761173,0.22508485,108200.0,108180.0,0.18487705]
[1748002761403,0.20336432,108180.0,108170.0,0.20775267]
[1748002761617,0.0324,108180.0,108170.0,0.20399339]
[1748002761828,0.0324,108180.0,108170.0,0.19474894]
[1748002762045,0.22655663,108160.0,108120.0,0.18599895]
[1748002762272,0.0331,108150.0,108120.0,0.19524784]
[1748002762503,0.00050896,108180.0,108130.0,0.64737652]
[1748002762731,0.03360896,108180.0,108170.0,0.21262722]
[1748002762959,0.00050896,108180.0,108170.0,0.55262722]
[1748002763190,0.00050896,108180.0,108170.0,0.65671363]
[1748002763491,0.00050896,108180.0,108170.0,5.70671363]
[1748002763737,0.00050896,108180.0,108170.0,5.85803514]
[1748002764029,0.00050896,108180.0,108170.0,1.61963514]
[1748002764266,0.00050896,108180.0,108170.0,2.01963514]
[1748002764554,0.00050896,108180.0,108170.0,1.59563514]
[1748002764555,0.00150896,108180.0,108170.0,1.59563514]
[1748002764821,0.00150896,108180.0,108170.0,0.69292868]
[1748002764822,0.00050896,108180.0,108170.0,0.69292868]
[1748002765057,0.00050896,108180.0,108170.0,0.18789414]
[1748002765242,0.00050896,108180.0,108170.0,0.22487158]
[1748002765540,0.00050896,108180.0,108170.0,0.61962757]
[1748002765806,0.00050896,108180.0,108170.0,0.79979412]
[1748002766044,0.00050896,108180.0,108170.0,1.15033497]
[1748002766299,0.00050896,108180.0,108170.0,1.77893497]
[1748002766526,0.00050896,108180.0,108170.0,6.23763497]
[1748002766757,0.00050896,108180.0,108170.0,2.62313497]
[1748002767221,0.00050896,108180.0,108170.0,2.46483497]
[1748002767640,0.00050896,108180.0,108170.0,2.46683497]
[1748002767865,0.07442207,108220.0,108210.0,0.21254863]
[1748002768097,0.07442207,108220.0,108210.0,0.23580581]
[1748002768353,0.26847054,108220.0,108210.0,0.04173881]
[1748002768580,0.08366182,108220.0,108210.0,0.20346075]
[1748002768801,0.31031105,108220.0,108210.0,0.00015281]
[1748002769935,0.23588898,108220.0,108210.0,0.00015281]
[1748002770221,0.23588898,108220.0,108210.0,0.00115281]
[1748002770718,0.20628898,108220.0,108210.0,0.00015281]
[1748002770970,0.23908898,108220.0,108210.0,0.00015281]
[1748002771467,0.23908898,108220.0,108210.0,0.18497861]
[1748002771689,0.23908898,108220.0,108210.0,0.00015281]
[1748002772331,0.20728898,108220.0,108210.0,0.00015281]
[1748002773005,0.29583454,108220.0,108210.0,0.00015281]
[1748002773253,0.003,108220.0,108210.0,0.55501159]
[1748002773527,0.003,108220.0,108210.0,0.72580791]
[1748002773774,0.003,108220.0,108210.0,0.75610791]
[1748002774016,0.21245106,108260.0,108240.0,0.20325091]
[1748002774294,0.02771275,108250.0,108240.0,0.30203553]
[1748002774501,0.00923719,108250.0,108240.0,0.28355834]
[1748002774737,0.20323239,108250.0,108240.0,0.4675645]
[1748002774967,0.22170753,108250.0,108240.0,0.47680322]
[1748002775203,0.21247034,108250.0,108240.0,0.37801894]
[1748002775433,0.21247034,108250.0,108240.0,0.57203215]
[1748002775671,0.19399537,108250.0,108240.0,0.37801894]
[1748002775909,0.19399537,108250.0,108240.0,0.34]
[1748002776144,0.19399537,108250.0,108230.0,0.74]
[1748002776145,0.20325159,108240.0,108230.0,0.74]
[1748002776858,0.20325159,108240.0,108230.0,0.34]
[1748002777072,0.21252924,108220.0,108210.0,0.40917287]
[1748002777314,0.20328932,108220.0,108210.0,0.00015281]
[1748002777527,0.20328899,108220.0,108210.0,0.20346093]
[1748002777737,0.20328916,108220.0,108210.0,0.08072152]
[1748002777939,0.20328916,108220.0,108210.0,0.27478852]
[1748002778169,0.23408916,108220.0,108210.0,0.00015281]
[1748002778402,0.39805679,108220.0,108210.0,0.00015281]
[1748002778868,0.40005679,108220.0,108210.0,0.00015281]
[1748002779085,0.40105679,108220.0,108210.0,0.00015281]
[1748002779289,0.32663472,108220.0,108210.0,0.00015281]
[1748002779509,0.32563472,108220.0,108210.0,0.00015281]
[1748002779974,0.44595679,108220.0,108210.0,0.00015281]
[1748002780182,0.91905017,108220.0,108210.0,0.00015281]
[1748002780384,0.37153472,108220.0,108210.0,0.00015281]
[1748002780603,0.36953472,108220.0,108210.0,0.00015281]
[1748002781047,1.19500753,108220.0,108210.0,0.00015281]
[1748002781280,0.37053472,108220.0,108210.0,0.00015281]
[1748002781505,0.09554556,108220.0,108210.0,0.18497861]
[1748002781729,0.005,108220.0,108210.0,0.59154188]
[1748002781962,0.005,108220.0,108210.0,0.71308744]
[1748002782179,0.008,108220.0,108210.0,0.72762829]
[1748002782396,0.008,108220.0,108210.0,1.07996744]
[1748002782623,0.02647992,108220.0,108210.0,1.37194034]
[1748002782839,0.02647992,108220.0,108210.0,1.441127]
[1748002782840,0.004,108220.0,108210.0,1.441127]
[1748002783062,0.004,108220.0,108210.0,1.45566785]
[1748002783291,0.00250896,108220.0,108210.0,1.48966786]
[1748002783499,0.20579812,108220.0,108210.0,0.74203282]
[1748002783708,0.20579812,108220.0,108210.0,0.40203282]
[1748002783961,0.20328916,108220.0,108210.0,0.40203282]
[1748002784166,0.32503472,108220.0,108210.0,0.40303282]
[1748002784593,0.00923932,108230.0,108220.0,0.02772027]
[1748002784801,0.21252847,108220.0,108210.0,0.97441284]
[1748002785008,0.01847873,108230.0,108220.0,0.5525289]
[1748002785241,0.21250952,108230.0,108220.0,0.5432895]
[1748002785672,0.20327037,108230.0,108220.0,0.34924043]
[1748002785907,0.20327037,108230.0,108220.0,0.43876194]
[1748002786116,0.20327037,108230.0,108220.0,0.68281101]
[1748002786326,0.00923907,108230.0,108220.0,0.70129059]
[1748002786552,0.03695678,108230.0,108220.0,0.70129059]
[1748002786753,0.03695678,108230.0,108220.0,0.70139059]
[1748002786954,0.03695678,108230.0,108220.0,0.70139076]
[1748002786955,0.04719687,108230.0,108220.0,0.70139076]
[1748002787165,0.03795729,108230.0,108220.0,0.71063059]
[1748002787404,0.21250944,108230.0,108220.0,0.70139076]
[1748002787619,0.0277178,108230.0,108220.0,0.70139076]
[1748002787840,0.20327054,108230.0,108220.0,0.47962151]
[1748002788049,0.20327054,108230.0,108220.0,0.3901]
[1748002788874,0.20327054,108230.0,108220.0,0.57490872]
[1748002789115,0.00923847,108240.0,108230.0,0.55250952]
[1748002789299,0.20323289,108250.0,108240.0,0.55249023]
[1748002789507,0.19622322,108280.0,108270.0,0.19395953]
[1748002789739,0.01847514,108250.0,108240.0,0.57906707]
[1748002789927,0.20323264,108250.0,108240.0,0.74]
[1748002790136,0.2032702,108230.0,108220.0,0.0806]
[1748002790343,0.2032702,108230.0,108220.0,0.0501]
[1748002790758,0.2032702,108230.0,108220.0,0.05025281]
[1748002791392,0.2032702,108230.0,108220.0,0.05125281]
[1748002791548,0.21250969,108230.0,108220.0,0.12675516]
[1748002791767,0.20327071,108230.0,108220.0,0.40729213]
[1748002792085,0.20327071,108230.0,108220.0,0.60134128]
[1748002792086,0.20727071,108230.0,108220.0,0.60134128]
[1748002792289,0.20727071,108230.0,108220.0,0.34]
[1748002792652,0.19803122,108230.0,108220.0,0.34]
[1748002792867,0.004,108230.0,108220.0,0.67247455]
[1748002793083,0.004,108230.0,108220.0,0.34]
[1748002793084,0.2072702,108230.0,108220.0,0.34]
[1748002793299,0.2072702,108230.0,108220.0,0.54328898]
[1748002793529,0.2072702,108230.0,108220.0,0.42952151]
[1748002793739,0.2072702,108230.0,108220.0,0.34]
[1748002793951,0.02047856,108230.0,108220.0,0.53404915]
[1748002794196,0.02047856,108230.0,108220.0,0.55252959]
[1748002794406,0.02047856,108230.0,108220.0,0.34]
[1748002794407,0.2032702,108230.0,108220.0,0.34]
[1748002794622,0.00924017,108220.0,108210.0,0.39988001]
[1748002794842,0.21252958,108220.0,108210.0,0.93394692]
[1748002795054,0.02771796,108230.0,108210.0,1.01425137]
[1748002795267,0.21252916,108220.0,108210.0,0.93394701]
[1748002795498,0.00923975,108220.0,108210.0,0.95242847]
[1748002795745,0.1847575,108250.0,108230.0,0.01847873]
[1748002795958,0.03710233,108250.0,108240.0,0.52477457]
[1748002796174,0.2218606,108250.0,108240.0,0.34]
[1748002796386,0.19401321,108240.0,108230.0,0.19402883]
[1748002796602,0.20326968,108230.0,108220.0,0.20328881]
[1748002796828,0.2125289,108220.0,108210.0,0.69270946]
[1748002797043,0.23376341,108220.0,108210.0,0.39988001]
[1748002797264,0.82977113,108220.0,108210.0,0.00100001]
[1748002797481,0.20336415,108180.0,108170.0,0.0002]
[1748002797705,0.23596415,108180.0,108170.0,0.0002]
[1748002797922,0.10603266,108180.0,108170.0,0.0002]
[1748002798126,0.2126074,108180.0,108170.0,0.0002]
[1748002798330,0.01748659,108180.0,108170.0,0.22207175]
[1748002798543,0.21260766,108180.0,108170.0,0.276769]
[1748002798757,0.20336432,108180.0,108170.0,0.08263016]
[1748002798973,0.20336432,108180.0,108170.0,0.00035296]
[1748002798974,0.35670988,108180.0,108170.0,0.00035296]
[1748002799183,0.32630988,108180.0,108170.0,0.00035296]
[1748002799399,0.35870988,108180.0,108170.0,0.00035296]
[1748002799616,0.67184856,108170.0,108160.0,0.009303]
[1748002799827,0.96520737,108160.0,108150.0,0.02937501]
[1748002800047,0.21343938,108140.0,108130.0,0.0001]
[1748002800264,0.38194786,108140.0,108130.0,0.0001]
[1748002800479,1.15705483,108140.0,108130.0,0.0001]
[1748002800697,0.20349583,108110.0,108100.0,0.002]
[1748002800915,0.08954556,108110.0,108100.0,0.20551499]
[1748002801192,0.21268562,108140.0,108130.0,0.20345836]
[1748002801431,0.00924752,108130.0,108120.0,0.55272556]
[1748002801670,0.00924573,108150.0,108140.0,0.02774061]
[1748002801936,0.2218721,108170.0,108150.0,0.13821385]
[1748002802171,0.21264663,108160.0,108150.0,0.00924641]
[1748002802415,0.20342065,108150.0,108140.0,0.74]
[1748002802652,0.20342065,108150.0,108140.0,0.4]
[1748002802894,0.00924419,108170.0,108150.0,0.00924564]
[1748002803142,0.21330803,108210.0,108190.0,0.20334467]
[1748002803372,0.001,108220.0,108210.0,0.55254863]
[1748002803605,0.01947975,108220.0,108210.0,0.54294542]
[1748002803841,0.03796018,108220.0,108210.0,0.55218611]
[1748002804111,0.20332656,108200.0,108190.0,0.59214602]
[1748002804404,0.20332656,108200.0,108190.0,0.47170046]
[1748002804648,0.20332656,108200.0,108190.0,0.39888]
[1748002804649,0.29287212,108200.0,108190.0,0.39888]
[1748002804886,0.22187227,108170.0,108160.0,0.24354723]
[1748002805128,0.01849206,108150.0,108140.0,0.61602544]
[1748002805357,0.20342083,108150.0,108140.0,0.39888]
[1748002805595,0.20342083,108150.0,108140.0,0.44021258]
[1748002805835,0.19419254,108140.0,108130.0,0.01444578]
[1748002806327,0.19419254,108140.0,108130.0,0.01495474]
[1748002806559,0.18492609,108160.0,108140.0,0.02774026]
[1748002806798,0.20338312,108170.0,108160.0,0.54340193]
[1748002807035,0.21262731,108170.0,108160.0,0.61280143]
[1748002807267,0.01848898,108170.0,108160.0,0.52491124]
[1748002807495,0.21262774,108170.0,108160.0,0.5341568]
[1748002807727,0.19413876,108170.0,108160.0,0.34]
[1748002807957,0.19413876,108170.0,108160.0,0.5341568]
[1748002808183,0.19413876,108170.0,108160.0,0.41568222]
[1748002808415,0.19413876,108170.0,108160.0,0.44578222]
[1748002808630,0.19413876,108170.0,108160.0,0.41568222]
[1748002809120,0.20342056,108150.0,108140.0,0.0144468]
[1748002809353,0.19419254,108140.0,108130.0,0.00050896]
[1748002809542,0.2837381,108140.0,108130.0,0.00050896]
[1748002809807,0.20343955,108140.0,108130.0,0.00050896]
[1748002810257,0.32558511,108140.0,108130.0,0.00050896]
[1748002811016,0.35012596,108140.0,108130.0,0.00150896]
[1748002811255,0.7837736,108140.0,108130.0,0.00050896]
[1748002811494,0.7737736,108140.0,108130.0,0.00050896]
[1748002811741,0.68112596,108140.0,108130.0,0.00050896]
[1748002811969,0.68012596,108140.0,108130.0,0.00050896]
[1748002812193,0.34012596,108140.0,108130.0,0.00050896]
[1748002812409,0.32558511,108140.0,108130.0,0.00050896]
[1748002812671,0.29598511,108140.0,108130.0,0.00050896]
[1748002813596,0.29998511,108140.0,108130.0,0.00050896]
[1748002813812,0.33238511,108140.0,108130.0,0.00050896]
[1748002814226,0.35392596,108140.0,108130.0,0.00050896]
[1748002814454,0.68692596,108140.0,108130.0,0.00050896]
[1748002815087,0.68292596,108140.0,108130.0,0.00050896]
[1748002815298,0.69292596,108140.0,108130.0,0.00050896]
[1748002815507,0.69592596,108140.0,108130.0,0.00050896]
[1748002815901,0.35592596,108140.0,108130.0,0.00050896]
[1748002816796,1.21325736,108140.0,108130.0,0.00050896]
[1748002817053,0.25863668,108110.0,108100.0,0.002]
[1748002817261,0.34818224,108110.0,108100.0,0.00215297]
[1748002817928,1.08469213,108110.0,108100.0,0.00215297]
[1748002818147,1.27043571,108110.0,108100.0,0.00215297]
[1748002818369,0.54884119,108080.0,108070.0,0.0001]
[1748002818577,1.04489664,108080.0,108070.0,0.00025311]
[1748002818791,0.93838675,108080.0,108070.0,0.00025311]
[1748002819013,1.50822625,108080.0,108070.0,0.00025311]
[1748002819228,0.325,108070.0,108050.0,0.0001]
[1748002819439,0.26098736,108030.0,108020.0,0.0001]
[1748002819679,0.35053292,108030.0,108020.0,0.0001]